fUST/lending_fUST_20240317
["ID","MTS","AMOUNT","RATE_DAILY","PERIOD"]
[319303831,1710651034117,-500.0,0.00018629,2]
[319303832,1710651034126,-500.0,0.00018629,2]
[319303833,1710651034134,-500.0,0.00018629,2]
[319303834,1710651034143,-500.0,0.00018629,2]
[319303835,1710651034152,-500.0,0.00018629,2]
[319303836,1710651034161,-500.0,0.00018629,2]
[319303837,1710651034170,-538.32209982,0.00018629,2]
[319303838,1710651034179,-470.06137026,0.00018629,2]
[319303839,1710651034188,-285.25548669,0.00018629,2]
[319303840,1710651034198,-2730.77,0.00018629,2]
[319303841,1710651034208,-2730.77,0.00018629,2]
[319303842,1710651034217,-2730.77,0.00018629,2]
[319303843,1710651034227,-2730.77,0.00018629,2]
[319303844,1710651034236,-2730.77,0.00018629,2]
[319303845,1710651034245,-2730.77,0.00018629,2]
[319303846,1710651034255,-2730.77,0.00018629,2]
[319303847,1710651034264,-2730.77,0.00018629,2]
[319303848,1710651034273,-2730.77,0.00018629,2]
[319303849,1710651034282,-2730.77,0.00018629,2]
[319303850,1710651034292,-2730.77,0.00018629,2]
[319303851,1710651034302,-2730.77,0.00018629,2]
[319303852,1710651034312,-2730.77,0.00018629,2]
[319303853,1710651034321,-2730.77,0.00018629,2]
[319303854,1710651034330,-2730.77,0.00018629,2]
[319303855,1710651034339,-2730.77,0.00018629,2]
[319303856,1710651034349,-2730.77,0.00018629,2]
[319303857,1710651034358,-2730.77,0.00018629,2]
[319303858,1710651034367,-2730.77,0.00018629,2]
[319303859,1710651034376,-2730.77,0.00018629,2]
[319303860,1710651034386,-2730.77,0.00018629,2]
[319303861,1710651034394,-2730.77,0.00018629,2]
[319303862,1710651034403,-2730.77,0.00018629,2]
[319303863,1710651034413,-2730.97762745,0.00018629,2]
[319303864,1710651034422,-908.64,0.00018629,2]
[319303865,1710651034432,-908.64,0.00018629,2]
[319303866,1710651034441,-908.64,0.00018629,2]
[319303867,1710651034450,-908.64,0.00018629,2]
[319303868,1710651034459,-908.64,0.00018629,2]
[319303869,1710651034469,-908.64,0.00018629,2]
[319303870,1710651034478,-908.64,0.00018629,2]
[319303871,1710651034487,-908.64,0.00018629,2]
[319303872,1710651034496,-908.64,0.00018629,2]
[319303873,1710651034505,-908.64,0.00018629,2]
[319303874,1710651034514,-908.64,0.00018629,2]
[319303875,1710651034523,-908.64,0.00018629,2]
[319303876,1710651034533,-908.64,0.00018629,2]
[319303877,1710651034542,-95.86885833,0.00018629,2]
[319303978,1710651038040,-812.77114167,0.00018629,2]
[319303980,1710651038051,-529.69760885,0.00018629,2]
[319304816,1710651547002,2000.0,0.00017684,2]
[319304819,1710651757450,201.096821,0.00017624,2]
[319304820,1710652001266,-165.31384015,0.00018509,2]
[319304821,1710652001288,-500.0,0.00018529,2]
[319304822,1710652001309,-500.0,0.00018529,2]
[319304823,1710652001331,-6504.73863053,0.00018529,2]
[319304824,1710652041115,-15703.54338883,0.00018529,2]
[319304825,1710652041136,-189.81998978,0.00018609,2]
[319304826,1710652041158,-500.0,0.00018627,2]
[319304827,1710652041178,-1010.83347204,0.00018628,2]
[319304828,1710652041198,-500.0,0.00018628,2]
[319304829,1710652041218,-169.21816455,0.00018628,2]
[319304830,1710652041239,-156.75485299,0.00018628,2]
[319304831,1710652041259,-184.61492513,0.00018628,2]
[319304832,1710652041278,-798.76066564,0.00018628,2]
[319304833,1710652041297,-187.37817515,0.00018628,2]
[319304834,1710652041316,-322.32581664,0.00018628,2]
[319304835,1710652041336,-500.0,0.00018628,2]
[319304836,1710652041357,-500.0,0.00018628,2]
[319304837,1710652041380,-500.0,0.00018628,2]
[319304838,1710652041401,-475.16,0.00018628,2]
[319304839,1710652041422,-500.0,0.00018628,2]
[319304840,1710652041444,-501.70710483,0.00018628,2]
[319304841,1710652041464,-500.0,0.00018628,2]
[319304842,1710652041487,-500.0,0.00018628,2]
[319304843,1710652041507,-500.0,0.00018628,2]
[319304844,1710652041529,-500.0,0.00018628,2]
[319304845,1710652041549,-500.0,0.00018628,2]
[319304846,1710652041570,-500.0,0.00018628,2]
[319304847,1710652041590,-500.0,0.00018628,2]
[319304848,1710652041616,-503.16068912,0.00018628,2]
[319304849,1710652041640,-500.0,0.00018628,2]
[319304850,1710652041660,-500.0,0.00018628,2]
[319304851,1710652041681,-513.79293068,0.00018628,2]
[319304852,1710652041702,-378.94239115,0.00018629,2]
[319304853,1710652041722,-908.64,0.00018629,2]
[319304854,1710652041742,-908.64,0.00018629,2]
[319304855,1710652041762,-908.64,0.00018629,2]
[319304856,1710652041782,-908.64,0.00018629,2]
[319304857,1710652041802,-500.0,0.00018629,2]
[319304858,1710652041822,-908.64,0.00018629,2]
[319304859,1710652041841,-531.04,0.00018629,2]
[319304860,1710652041861,-908.64,0.00018629,2]
[319304861,1710652041882,-908.64,0.00018629,2]
[319304862,1710652041901,-908.64,0.00018629,2]
[319304863,1710652041921,-908.67,0.00018629,2]
[319304864,1710652041942,-500.0,0.00018629,2]
[319304865,1710652041961,-500.0,0.00018629,2]
[319304866,1710652041982,-500.0,0.00018629,2]
[319304867,1710652042003,-589.07704617,0.00018629,2]
[319304868,1710652042022,-500.0,0.00018629,2]
[319304869,1710652042045,-500.0,0.00018629,2]
[319304870,1710652042065,-500.0,0.00018629,2]
[319304871,1710652042084,-500.0,0.00018629,2]
[319304872,1710652042103,-626.06517648,0.00018629,2]
[319304873,1710652042123,-500.0,0.00018629,2]
[319304874,1710652042144,-500.0,0.00018629,2]
[319304875,1710652042162,-500.0,0.00018629,2]
[319304876,1710652042182,-500.0,0.00018629,2]
[319304877,1710652042203,-500.0,0.00018629,2]
[319304878,1710652042223,-500.0,0.00018629,2]
[319304879,1710652042242,-500.0,0.00018629,2]
[319304880,1710652042261,-500.0,0.00018629,2]
[319304881,1710652042280,-500.0,0.00018629,2]
[319304882,1710652042300,-500.0,0.00018629,2]
[319304883,1710652042320,-500.0,0.00018629,2]
[319304884,1710652042340,-500.0,0.00018629,2]
[319304885,1710652042359,-500.0,0.00018629,2]
[319304886,1710652042380,-500.0,0.00018629,2]
[319304887,1710652042400,-500.0,0.00018629,2]
[319304888,1710652042526,-518.15544635,0.00018629,2]
[319304889,1710652042547,-500.0,0.00018629,2]
[319304890,1710652042566,-500.0,0.00018629,2]
[319304891,1710652042585,-500.0,0.00018629,2]
[319304892,1710652042604,-500.0,0.00018629,2]
[319304893,1710652042627,-500.0,0.00018629,2]
[319304894,1710652042647,-500.0,0.00018629,2]
[319304895,1710652042667,-500.0,0.00018629,2]
[319304896,1710652042687,-500.0,0.00018629,2]
[319304897,1710652042706,-326.7997673,0.00018629,2]
[319304898,1710652042726,-500.0,0.00018629,2]
[319304899,1710652042745,-501.54553248,0.00018629,2]
[319304900,1710652042765,-456.52790757,0.00018629,2]
[319304901,1710652042784,-503.74365497,0.00018629,2]
[319304902,1710652042804,-511.23779161,0.00018629,2]
[319304903,1710652042824,-500.0,0.00018629,2]
[319304904,1710652042844,-500.0,0.00018629,2]
[319304905,1710652042864,-500.0,0.00018629,2]
[319304906,1710652042885,-500.0,0.00018629,2]
[319304907,1710652042904,-558.2,0.00018629,2]
[319304908,1710652042925,-8913.30749747,0.0001863,2]
[319304909,1710652045209,-28360.45270064,0.0001863,2]
[319304910,1710652188913,176.847924,0.00017853,2]
[319304916,1710652232218,-68809.50238693,0.0001863,2]
[319304917,1710652232230,-12278.97528794,0.0001863,2]
[319304918,1710652232242,-17750.79704643,0.0001863,2]
[319304967,1710652238278,-1077.62580765,0.0001863,2]
[319304968,1710652238292,-28360.45270064,0.0001863,2]
[319304969,1710652238304,-199460.13649919,0.0001863,2]
[319304977,1710652241847,-2303.02942273,0.0001863,2]
[319305012,1710652243457,-4585.09172518,0.0001863,2]
[319305013,1710652243468,-4334.04464039,0.0001863,2]
[319305014,1710652243479,-7670.05247068,0.0001863,2]
[319305018,1710652681544,-500.0,0.00021917,30]
[319305019,1710652681579,-520.8131682,0.00021917,30]
[319305021,1710652698061,-475.4868318,0.00022,30]
[319305028,1710653240320,-5210.8494759,0.00018344,2]
[319305029,1710653240341,-171.57733227,0.0001843,2]
[319305030,1710653240362,-41255.56449598,0.00018529,2]
[319305031,1710653240382,-567.54177451,0.0001853,2]
[319305096,1710653432496,-720.42394934,0.00018345,2]
[319305097,1710653432506,-32.96597738,0.0001853,2]
[319305098,1710653432515,-687.45797196,0.0001853,2]
[319305099,1710653432525,-12021.23463111,0.0001853,2]
[319305100,1710653432536,-62.31747021,0.0001853,2]
[319305151,1710653438361,-500.0,0.00018345,2]
[319305158,1710653438419,-6684.15936292,0.00018345,2]
[319305160,1710653438431,-432.25340078,0.00018345,2]
[319305167,1710653438494,-6279.46564216,0.00018345,2]
[319305169,1710653438504,-24172.38459764,0.0001853,2]
[319305702,1710653443422,-34051.07294548,0.0001853,2]
[319305704,1710653443431,-500.0,0.00018628,2]
[319305706,1710653443441,-500.0,0.00018628,2]
[319305709,1710653443451,-500.0,0.00018628,2]
[319305711,1710653443461,-500.0,0.00018628,2]
[319305713,1710653443471,-500.0,0.00018628,2]
[319305715,1710653443480,-500.0,0.00018628,2]
[319305717,1710653443490,-500.0,0.00018628,2]
[319305719,1710653443499,-240.91023365,0.00018629,2]
[319305721,1710653443509,-155.26510119,0.00018629,2]
[319305723,1710653443518,-1084.44041466,0.00018629,2]
[319305725,1710653443527,-394.04203971,0.00018629,2]
[319305727,1710653443540,-155.55805444,0.00018629,2]
[319305729,1710653443550,-281.42281136,0.00018629,2]
[319305731,1710653443559,-155.82238152,0.00018629,2]
[319305733,1710653443568,-3231.85001238,0.00018629,2]
[319305735,1710653443578,-258.03802724,0.00018629,2]
[319305737,1710653443587,-86876.40247781,0.0001863,2]
[319305739,1710653443599,-19278.80872756,0.0001863,2]
[319305741,1710653443610,-414248.07362912,0.0001863,2]
[319306015,1710653446412,-76151.2682058,0.0001863,2]
[319306022,1710653446471,-46290.18312178,0.0001863,2]
[319306032,1710653446564,-25.5129682,0.0001863,2]
[319306035,1710653446577,-155081.15856,0.0001863,2]
[319307372,1710654432217,-3224.86444071,0.00018408,2]
[319307373,1710654432237,-550.8419251,0.00018409,2]
[319307374,1710654432256,-280.83400455,0.0001841,2]
[319307375,1710654432277,-165.31384015,0.00018429,2]
[319307376,1710654432296,-1010.83347204,0.00018499,2]
[319307377,1710654432315,-29791.3104797,0.000185,2]
[319307423,1710654632451,-34280.0695203,0.000185,2]
[319307425,1710654632461,-687.45797196,0.000185,2]
[319307427,1710654632470,-500.0,0.00018529,2]
[319307429,1710654632479,-500.0,0.00018529,2]
[319307431,1710654632489,-50001.00410286,0.0001853,2]
[319307433,1710654632498,-189.81998978,0.00018609,2]
[319307435,1710654632508,-500.0,0.00018627,2]
[319307437,1710654632518,-542.70058773,0.00018628,2]
[319307440,1710654632528,-584.18384137,0.00018628,2]
[319307442,1710654632538,-333.62620507,0.00018628,2]
[319307445,1710654632548,-806.52923668,0.00018628,2]
[319307448,1710654632558,-500.0,0.00018628,2]
[319307451,1710654632567,-1084.44041466,0.00018628,2]
[319307454,1710654632577,-155.82238152,0.00018628,2]
[319307456,1710654632588,-240.91023365,0.00018628,2]
[319307459,1710654632597,-394.04203971,0.00018628,2]
[319307461,1710654632607,-155.26510119,0.00018628,2]
[319307463,1710654632617,-155.55805444,0.00018628,2]
[319307466,1710654632627,-500.39626835,0.00018628,2]
[319307468,1710654632637,-500.0,0.00018628,2]
[319307470,1710654632646,-500.0,0.00018628,2]
[319307472,1710654632655,-461.102931,0.00018628,2]
[319307474,1710654632665,-500.0,0.00018628,2]
[319307476,1710654632674,-500.0,0.00018628,2]
[319307478,1710654632683,-187.37817515,0.00018628,2]
[319307480,1710654632693,-156.75485299,0.00018628,2]
[319307481,1710654632703,-798.76066564,0.00018628,2]
[319307483,1710654632713,-184.61492513,0.00018628,2]
[319307484,1710654632722,-322.32581664,0.00018628,2]
[319307485,1710654632733,-500.0,0.00018628,2]
[319307486,1710654632743,-500.0,0.00018628,2]
[319307487,1710654632753,-500.0,0.00018628,2]
[319307488,1710654632765,-500.0,0.00018628,2]
[319307489,1710654632778,-500.0,0.00018628,2]
[319307491,1710654632787,-500.0,0.00018628,2]
[319307492,1710654632797,-501.70710483,0.00018628,2]
[319307495,1710654632810,-261.9599716,0.00018628,2]
[319307496,1710654632819,-500.0,0.00018628,2]
[319307497,1710654632830,-501.14236167,0.00018628,2]
[319307498,1710654632845,-616.91646955,0.00018628,2]
[319307499,1710654632856,-500.0,0.00018628,2]
[319307500,1710654632866,-198.08568717,0.00018628,2]
[319307501,1710654632878,-303.86098979,0.00018628,2]
[319307502,1710654632889,-500.0,0.00018628,2]
[319307503,1710654632900,-213.17273031,0.00018628,2]
[319307896,1710654642059,-286.82726969,0.00018628,2]
[319307898,1710654642070,-500.0,0.00018628,2]
[319307900,1710654642079,-500.0,0.00018628,2]
[319307902,1710654642089,-194.65273831,0.00018628,2]
[319307905,1710654642101,-305.34726169,0.00018628,2]
[319307907,1710654642110,-938.60061694,0.00018628,2]
[319307909,1710654642120,-500.0,0.00018628,2]
[319307911,1710654642129,-500.0,0.00018628,2]
[319307912,1710654642138,-513.79293068,0.00018628,2]
[319307915,1710654642147,-500.0,0.00018628,2]
[319307917,1710654642157,-500.0,0.00018628,2]
[319307918,1710654642165,-500.0,0.00018628,2]
[319307920,1710654642175,-475.16,0.00018628,2]
[319307923,1710654642185,-500.0,0.00018628,2]
[319307925,1710654642194,-500.0,0.00018628,2]
[319307926,1710654642203,-500.0,0.00018628,2]
[319307928,1710654642213,-500.0,0.00018628,2]
[319307931,1710654642223,-500.0,0.00018628,2]
[319307932,1710654642232,-505.57308871,0.00018628,2]
[319307934,1710654642241,-500.0,0.00018628,2]
[319307936,1710654642250,-500.0,0.00018628,2]
[319307938,1710654642259,-500.0,0.00018628,2]
[319307941,1710654642269,-500.0,0.00018628,2]
[319307942,1710654642278,-500.0,0.00018628,2]
[319307945,1710654642287,-500.0,0.00018628,2]
[319307946,1710654642296,-500.0,0.00018628,2]
[319307948,1710654642306,-500.0,0.00018628,2]
[319307951,1710654642315,-500.0,0.00018628,2]
[319307952,1710654642323,-500.0,0.00018628,2]
[319307954,1710654642332,-290.59,0.00018628,2]
[319307956,1710654642343,-500.0,0.00018628,2]
[319307958,1710654642352,-500.0,0.00018628,2]
[319307960,1710654642361,-500.0,0.00018628,2]
[319307962,1710654642370,-500.0,0.00018628,2]
[319307965,1710654642380,-315.55742792,0.00018628,2]
[319307967,1710654642389,-500.0,0.00018628,2]
[319307969,1710654642398,-500.0,0.00018628,2]
[319307970,1710654642407,-503.16068912,0.00018628,2]
[319307972,1710654642416,-500.0,0.00018628,2]
[319307974,1710654642425,-305.89971124,0.00018628,2]
[319307976,1710654642434,-500.0,0.00018628,2]
[319307978,1710654642443,-224.02,0.00018628,2]
[319307980,1710654642453,-1568.44725333,0.00018628,2]
[319307982,1710654642462,-281.30194372,0.00018628,2]
[319307984,1710654642471,-245.362464,0.00018628,2]
[319307986,1710654642480,-500.0,0.00018628,2]
[319307988,1710654642489,-169.21816455,0.00018628,2]
[319307990,1710654642499,-208.46014037,0.00018629,2]
[319307993,1710654642508,-604.86239115,0.00018629,2]
[319307994,1710654642517,-258.03802724,0.00018629,2]
[319307996,1710654642527,-500.0,0.00018629,2]
[319307999,1710654642537,-500.0,0.00018629,2]
[319308001,1710654642545,-500.0,0.00018629,2]
[319308003,1710654642555,-500.0,0.00018629,2]
[319308005,1710654642564,-500.0,0.00018629,2]
[319308006,1710654642573,-500.0,0.00018629,2]
[319308008,1710654642582,-500.0,0.00018629,2]
[319308010,1710654642592,-500.0,0.00018629,2]
[319308012,1710654642603,-500.0,0.00018629,2]
[319308013,1710654642613,-500.0,0.00018629,2]
[319308015,1710654642623,-500.0,0.00018629,2]
[319308017,1710654642632,-500.0,0.00018629,2]
[319308019,1710654642641,-500.0,0.00018629,2]
[319308021,1710654642649,-500.0,0.00018629,2]
[319308023,1710654642659,-500.0,0.00018629,2]
[319308025,1710654642668,-198.77150837,0.00018629,2]
[319308027,1710654642678,-582.92,0.00018629,2]
[319308029,1710654642687,-9756.22241784,0.0001863,2]
[319308140,1710654643588,-130384.82449944,0.0001863,2]
[319308143,1710654643600,-19278.80872756,0.0001863,2]
[319308145,1710654643612,-414248.07362912,0.0001863,2]
[319309270,1710654661421,336.92563888,0.00017697,2]
[319309273,1710654729081,154.95351395,0.00017697,2]
[319309274,1710654743004,154.95351395,0.00017697,2]
[319309276,1710654872794,549.31188535,0.0002,120]
[319309310,1710655832808,-163.574976,0.00018422,2]
[319309311,1710655832818,-161.56899817,0.00018423,2]
[319309312,1710655832830,-25.91051476,0.00018423,2]
[319309313,1710655832839,-179.03186738,0.0001843,2]
[319309314,1710655832848,-234.62261786,0.00018497,2]
[319309315,1710655832860,-2478.61320064,0.00018497,2]
[319309316,1710655832871,-1798.49519264,0.00018497,2]
[319309317,1710655832882,-690.40050124,0.000185,2]
[319309318,1710655832891,-186.33152971,0.000185,2]
[319309319,1710655832900,-191.11153961,0.00018528,2]
[319309320,1710655832910,-191.1115396,0.00018529,2]
[319309321,1710655832919,-191.1115396,0.00018529,2]
[319309322,1710655832928,-500.0,0.00018529,2]
[319309323,1710655832938,-500.0,0.00018529,2]
[319309324,1710655832947,-1080.50139056,0.00018529,2]
[319309325,1710655832958,-462.228,0.00018529,2]
[319309381,1710655838739,-334.0825347,0.00018529,2]
[319309388,1710655838796,-5957.64909485,0.00018529,2]
[319309560,1710655840730,-1141.66264446,0.00018529,2]
[319309566,1710655840788,-17001.75,0.00018529,2]
[319309877,1710655843705,-17195.49893563,0.00018529,2]
[319309879,1710655843714,-191.1115396,0.0001853,2]
[319309880,1710655843723,-191.1115396,0.0001853,2]
[319309882,1710655843733,-179.03186738,0.0001853,2]
[319309884,1710655843742,-56259.35496484,0.0001853,2]
[319309886,1710655843751,-500.0,0.00018627,2]
[319309888,1710655843760,-1000.0,0.00018628,5]
[319309890,1710655843769,-1518.53587366,0.00018628,2]
[319309891,1710655843777,-500.0,0.00018628,2]
[319309892,1710655843789,-170.15865775,0.00018628,2]
[319309893,1710655843798,-181.25815924,0.00018628,2]
[319309894,1710655843807,-312.54514562,0.00018628,2]
[319309895,1710655843816,-312.18602686,0.00018628,2]
[319309896,1710655843825,-341.39611652,0.00018628,2]
[319309897,1710655843833,-500.0,0.00018628,2]
[319309898,1710655843842,-500.0,0.00018628,2]
[319309899,1710655843851,-501.34915919,0.00018628,2]
[319309900,1710655843860,-500.0,0.00018628,2]
[319309901,1710655843869,-500.0,0.00018628,2]
[319309902,1710655843878,-500.0,0.00018628,2]
[319309903,1710655843887,-500.0,0.00018628,2]
[319309904,1710655843895,-589.07704617,0.00018628,2]
[319309905,1710655843904,-500.0,0.00018628,2]
[319309906,1710655843913,-500.0,0.00018628,2]
[319309907,1710655843921,-500.0,0.00018628,2]
[319309908,1710655843930,-500.0,0.00018628,2]
[319309909,1710655843939,-626.06517648,0.00018628,2]
[319309910,1710655843947,-500.0,0.00018628,2]
[319309911,1710655843956,-500.0,0.00018628,2]
[319309912,1710655843965,-500.0,0.00018628,2]
[319309913,1710655843974,-500.0,0.00018628,2]
[319309915,1710655843983,-500.0,0.00018628,2]
[319309916,1710655843992,-500.0,0.00018628,2]
[319309918,1710655844001,-500.0,0.00018628,2]
[319309921,1710655844018,-500.0,0.00018628,2]
[319309924,1710655844032,-500.0,0.00018628,2]
[319309926,1710655844042,-500.0,0.00018628,2]
[319309928,1710655844052,-500.0,0.00018628,2]
[319309930,1710655844062,-500.0,0.00018628,2]
[319309932,1710655844071,-531.04,0.00018628,2]
[319309934,1710655844080,-500.0,0.00018628,2]
[319309936,1710655844089,-500.0,0.00018628,2]
[319309938,1710655844099,-500.0,0.00018628,2]
[319309940,1710655844108,-500.0,0.00018628,2]
[319309942,1710655844117,-500.0,0.00018628,2]
[319309944,1710655844127,-500.0,0.00018628,2]
[319309946,1710655844136,-501.54553248,0.00018628,2]
[319309948,1710655844148,-456.52790757,0.00018628,2]
[319309950,1710655844158,-500.0,0.00018628,2]
[319309952,1710655844167,-500.0,0.00018628,2]
[319309954,1710655844177,-500.0,0.00018628,2]
[319309956,1710655844187,-500.0,0.00018628,2]
[319309958,1710655844197,-558.2,0.00018628,2]
[319309960,1710655844207,-157.22909361,0.00018629,2]
[319309962,1710655844216,-1148.04223621,0.00018629,2]
[319309964,1710655844228,-500.0,0.00018629,2]
[319309966,1710655844237,-500.0,0.00018629,2]
[319309968,1710655844246,-500.0,0.00018629,2]
[319309970,1710655844255,-500.0,0.00018629,2]
[319309972,1710655844265,-500.0,0.00018629,2]
[319309974,1710655844274,-500.0,0.00018629,2]
[319309976,1710655844285,-500.0,0.00018629,2]
[319309978,1710655844294,-500.0,0.00018629,2]
[319309980,1710655844304,-500.0,0.00018629,2]
[319309982,1710655844313,-500.0,0.00018629,2]
[319309984,1710655844323,-518.15544635,0.00018629,2]
[319309986,1710655844332,-500.0,0.00018629,2]
[319309988,1710655844341,-500.0,0.00018629,2]
[319309990,1710655844350,-500.0,0.00018629,2]
[319309992,1710655844360,-500.0,0.00018629,2]
[319309994,1710655844369,-500.0,0.00018629,2]
[319309996,1710655844378,-451.87,0.00018629,2]
[319309998,1710655844387,-500.0,0.00018629,2]
[319310000,1710655844396,-500.0,0.00018629,2]
[319310001,1710655844406,-500.0,0.00018629,2]
[319310003,1710655844415,-326.7997673,0.00018629,2]
[319310005,1710655844425,-825093.31198028,0.0001863,2]
[319310008,1710655844438,-1357.54,0.0001863,2]
[319310012,1710655844466,-154.95351395,0.00018628,2]
[319310014,1710655844475,-18050.75425527,0.0001863,2]
[319310261,1710655846834,-187.36267525,0.00018628,2]
[319310264,1710655846844,-70755.16633822,0.0001863,2]
[319310266,1710655846855,-28486.77922933,0.0001863,2]
[319310314,1710655881582,336.92563888,0.00017697,2]
[319311051,1710657037965,-154.95351395,0.00018529,2]
[319311052,1710657037976,-3449.2060017,0.0001853,2]
[319311053,1710657037987,-2802.41252652,0.0001853,2]
[319311054,1710657037996,-190.63808134,0.00018618,2]
[319311055,1710657038008,-8574.4988664,0.00018618,2]
[319312279,1710658232905,-154.95351395,0.00018617,2]
[319312282,1710658232920,-693.62166467,0.00018618,2]
[319312285,1710658232930,-500.0,0.00018628,2]
[319312287,1710658232939,-500.0,0.00018628,2]
[319312289,1710658232948,-503.74365497,0.00018628,2]
[319312291,1710658232957,-511.23779161,0.00018628,2]
[319312293,1710658232966,-155.22810194,0.00018628,2]
[319312295,1710658232974,-298.892029,0.00018629,2]
[319312297,1710658232983,-500.0,0.00018629,2]
[319312299,1710658232993,-500.0,0.00018629,2]
[319312301,1710658233002,-500.0,0.00018629,2]
[319312303,1710658233012,-500.0,0.00018629,2]
[319312305,1710658233021,-500.0,0.00018629,2]
[319312307,1710658233031,-500.0,0.00018629,2]
[319312309,1710658233040,-500.0,0.00018629,2]
[319312311,1710658233049,-500.0,0.00018629,2]
[319312313,1710658233059,-500.0,0.00018629,2]
[319312315,1710658233068,-500.0,0.00018629,2]
[319312317,1710658233078,-500.0,0.00018629,2]
[319312319,1710658233087,-500.0,0.00018629,2]
[319312321,1710658233097,-500.0,0.00018629,2]
[319312323,1710658233106,-404.93589487,0.00018629,2]
[319312853,1710658238214,-95.06410513,0.00018629,2]
[319312855,1710658238223,-500.0,0.00018629,2]
[319312857,1710658238232,-532.02809948,0.00018629,2]
[319312859,1710658238241,-273.63598118,0.00018629,2]
[319312861,1710658238251,-15199.988482,0.0001863,2]
[319312863,1710658238262,-8846.16180816,0.0001863,2]
[319312865,1710658238273,-2239.61752944,0.0001863,2]
[319313285,1710658242059,-3105.08286945,0.0001863,2]
[319313292,1710658242118,-872.51072371,0.0001863,2]
[319313797,1710658247151,-2628.83986631,0.00018629,2]
[319313799,1710658247160,-9487.99806395,0.0001863,2]
[319314200,1710658251467,404.1824661,0.0001784,2]
[319316854,1710658280870,1200.8424596,0.00017649,2]
[319322257,1710658815810,155.0,0.00017891,2]
[319322289,1710659376141,620.85668755,0.00017888,2]
[319322315,1710659432336,-155.0,0.00018526,2]
[319322316,1710659432346,-1042.86276343,0.00018526,2]
[319322317,1710659432355,-213.35856179,0.00018528,2]
[319322318,1710659432364,-213.35856179,0.00018529,2]
[319322319,1710659432374,-250.0465759,0.00018628,2]
[319322320,1710659432383,-187.29233727,0.00018628,2]
[319322321,1710659432394,-180.61982912,0.00018628,2]
[319322322,1710659432416,-488.49256032,0.00018628,2]
[319322323,1710659432426,-500.0,0.00018629,2]
[319322324,1710659432435,-533.30054316,0.00018629,2]
[319322326,1710659432444,-504.13680758,0.00018629,2]
[319322328,1710659432453,-500.0,0.00018629,2]
[319322331,1710659432463,-390.12736519,0.00018629,2]
[319322335,1710659432474,-109.87263481,0.00018629,2]
[319322337,1710659432483,-500.0,0.00018629,2]
[319322339,1710659432492,-500.0,0.00018629,2]
[319322340,1710659432502,-500.0,0.00018629,2]
[319322342,1710659432511,-500.0,0.00018629,2]
[319322345,1710659432521,-500.0,0.00018629,2]
[319322347,1710659432531,-184.81347813,0.00018629,2]
[319322349,1710659432540,-500.0,0.00018629,2]
[319322350,1710659432550,-500.0,0.00018629,2]
[319322352,1710659432561,-500.0,0.00018629,2]
[319322354,1710659432571,-635.88,0.00018629,2]
[319322355,1710659432580,-500.0,0.00018629,2]
[319322357,1710659432589,-548.29540421,0.00018629,2]
[319322358,1710659432598,-500.0,0.00018629,2]
[319322359,1710659432608,-500.0,0.00018629,2]
[319322360,1710659432618,-500.0,0.00018629,2]
[319322361,1710659432627,-427.66,0.00018629,2]
[319322362,1710659432635,-97860.79203184,0.0001863,2]
[319322411,1710659438587,-16426.0157992,0.0001863,2]
[319322413,1710659438599,-13183.60296101,0.0001863,2]
[319322415,1710659438610,-1153.01395879,0.0001863,2]
[319322417,1710659438621,-1856.74337576,0.0001863,2]